Cogmind - Beta 10.2 @@@ ROGUE MODE // 2021.10.12 @ 10:36:52 Player: Triffids Result: Self-destructed Performance ------------- Evolutions (1) 500 Regions Visited (4) 800 Robots Destroyed (23) 115 Value Destroyed (507) 507 Prototype IDs (0) 0 Alien Tech Used (0) 0 Bonus (0) 0 TOTAL SCORE: 1922 Bonus ------- None Cogmind --------- Core Integrity 361/400 Matter 270/300 Energy 275/275 System Corruption 0% Temperature Cool (0) Movement Walking (120) Location -9/Exiles Parts ------- > --- POWER (1) -------- Deuterium Engine > --- PROPULSION (3) --- Aluminum Leg Aluminum Leg Aluminum Leg > --- UTILITY (2) ------ Improved Terrain Scanner Seismic Analyzer > --- WEAPON (3) ------- Light EM Pulse Cannon Assault Cannon Assault Cannon > --- INVENTORY (4) ---- Deuterium Engine Aluminum Leg Improved Heat Sink Peak State ------------ > --- POWER ------------ Deuterium Engine > --- PROPULSION ------- Aluminum Leg Aluminum Leg Aluminum Leg > --- UTILITY ---------- Improved Terrain Scanner Seismic Analyzer > --- WEAPON ----------- EM Shotgun Assault Cannon Assault Cannon > --- INVENTORY -------- Deuterium Engine Aluminum Leg Improved Heat Sink Light EM Pulse Cannon [Rating: 17] Favorites ----------- Power Deuterium Engine Engine Deuterium Engine Power Core Light Nuclear Core Propulsion Aluminum Leg Leg Aluminum Leg Wheel Wheel Utility Seismic Analyzer Device Improved Terrain Scanner Processor Seismic Analyzer Weapon Assault Cannon Energy Gun EM Shotgun Energy Cannon Light EM Pulse Cannon Ballistic Gun Assault Rifle Ballistic Cannon Assault Cannon Build | -11 -10 -9 -9 -9 ------- Run | Scr Mat Mat Min Exi Slots Evolved 2 | . . 2 . . Power . | . . . . . Propulsion 1 | . . 1 . . Utility . | . . . . . Weapon 1 | . . 1 . . Parts Attached 24 | 9 5 6 4 . Power 3 | 1 1 1 . . Engine 2 | 1 . 1 . . Core 1 | . 1 . . . Reactor . | . . . . . Propulsion 9 | 4 2 1 2 . Treads . | . . . . . Leg 7 | 2 2 1 2 . Wheel 2 | 2 . . . . Hover . | . . . . . Flight . | . . . . . Utility 2 | 2 . . . . Device 1 | 1 . . . . Storage . | . . . . . Processor 1 | 1 . . . . Hackware . | . . . . . Protection . | . . . . . Artifact . | . . . . . Weapon 10 | 2 2 4 2 . Energy Gun 5 | 1 2 1 1 . Energy Cannon 2 | . . 1 1 . Ballistic Gun 1 | 1 . . . . Ballistic Cannon 2 | . . 2 . . Launcher . | . . . . . Special Weapon . | . . . . . Impact Weapon . | . . . . . Slashing Weapon . | . . . . . Piercing Weapon . | . . . . . Special Melee Weapon . | . . . . . Unidentified Prototypes . | . . . . . Parts Lost 4 | . 2 . 2 . Power . | . . . . . Propulsion 2 | . 1 . 1 . Utility . | . . . . . Weapon 2 | . 1 . 1 . Highest Loss Streak 2 | . 2 . 1 . Average Slot Usage (%) 99 | . 99 100 99 100 Engine 7 | . 3 7 11 11 Core 4 | . 10 3 . . Leg 30 | . 27 33 32 33 Device 12 | . 14 11 11 11 Processor 12 | . 14 11 11 11 Energy Gun 10 | . 14 7 10 . Energy Cannon 1 | . . 6 . 11 Ballistic Gun 5 | . 14 4 . . Ballistic Cannon 13 | . . 14 22 22 Naked Turns . | . . . . . Heaviest Build 24 | 8 10 24 24 24 Greatest Support 30 | 20 20 30 30 30 Greatest Overweight (x) 1 | . . . 1 . Average Overweight (x) . | . . . . . Largest Inventory Capacity 4 | 4 4 4 4 4 Average Capacity 4 | 4 4 4 4 4 Most Carried 4 | 4 4 4 4 3 Average Carried 3 | 3 3 3 3 3 Final Capacity 4 | 4 4 4 4 4 Final Carried 4 | 4 4 4 3 3 Class Distribution -------------------- 47% | Scavenger-Skirmisher 47% | Scavenger-Mutant 5% | Skirmisher Dominant Class ---------------- Scavenger-Mutant | -10/Materials Scavenger-Skirmisher | -9/Materials Scavenger-Skirmisher | -9/Mines Scavenger-Skirmisher | -9/Exiles Resources | -11 -10 -9 -9 -9 ----------- Run | Scr Mat Mat Min Exi Matter Collected 684 | 317 103 119 145 . Remotely . | . . . . . Salvage Created 618 | 68 193 37 320 . Parts 57 | 6 18 1 32 . Haulers Intercepted . | . . . . . Recyclers Shooed 1 | . 1 . . . Parts Field Recycled . | . . . . . Retrieved Matter . | . . . . . Parts Self-Destructed . | . . . . . Prevented . | . . . . . Kills | -11 -10 -9 -9 -9 ------- Run | Scr Mat Mat Min Exi Combat Hostiles Destroyed 20 | 1 6 1 12 . Guns 12 | 1 6 . 5 . Cannons 8 | . . 1 7 . Classes Destroyed 6 | 2 2 1 1 . Builder 1 | . 1 . . . Tunneler 2 | 1 . . 1 . Swarmer 10 | . 3 . 7 . Grunt 6 | 1 3 . 2 . Brawler 1 | . . . 1 . Sentry 3 | . . 1 2 . Best Kill Streak 7 | 1 3 1 7 . Combat Bots Only 7 | 1 3 1 7 . Max Kills in Single Turn 2 | 1 1 1 2 . Gunslinging . | . . . . . Exploded . | . . . . . Melee . | . . . . . Uniques/NPCs Destroyed . | . . . . . Combat | -11 -10 -9 -9 -9 -------- Run | Scr Mat Mat Min Exi Damage Taken 829 | 75 360 140 254 . Core 91 | 10 42 14 25 . Absorbed by Shields . | . . . . . Core Remaining (%) 87 | 96 79 . . . Volleys Fired 52 | 9 24 5 14 . Largest 3 | 2 2 3 3 . Hottest 144 | 60 70 144 144 . Shots Fired 122 | 18 47 15 42 . Gun 77 | 18 47 . 12 . Cannon 45 | . . 15 30 . Launcher . | . . . . . Special . | . . . . . Kinetic 71 | 9 24 10 28 . Thermal 17 | . 17 . . . Explosive . | . . . . . Electromagnetic 34 | 9 6 5 14 . Robot Hit Streak 10 | 6 10 5 5 . Robot Miss Streak 6 | 1 3 2 6 . Penetration Max . | . . . . . Secondary Targets 2 | . 2 . . . Max Gunslinging Chain 1 | . 1 . . . Shots Hit Robots 72 | 14 33 8 17 . Core Hits 32 | 3 12 2 15 . Critical Hits . | . . . . . Critical Kills . | . . . . . Critical Parts Destroyed . | . . . . . Melee Attacks . | . . . . . Impact . | . . . . . Slashing . | . . . . . Piercing . | . . . . . Sneak Attacks . | . . . . . Combat Hostiles . | . . . . . Follow-up Attacks . | . . . . . Damage Inflicted 1133 | 189 338 197 409 . Guns 631 | 189 338 . 104 . Cannons 502 | . . 197 305 . Explosions . | . . . . . Melee . | . . . . . Ramming . | . . . . . Kinetic 612 | 88 139 117 268 . Thermal 125 | . 125 . . . Explosive . | . . . . . Electromagnetic 396 | 101 74 80 141 . Impact . | . . . . . Slashing . | . . . . . Piercing . | . . . . . Highest Corruption . | . . . . . Average Corruption . | . . . . . Corruption Purged . | . . . . . Overload Shots . | . . . . . Overflow Damage 5 | . . . 5 . Projectiles 5 | . . . 5 . Explosions . | . . . . . Melee . | . . . . . Knockbacks . | . . . . . Impact . | . . . . . Kinetic . | . . . . . Secondary . | . . . . . Self-Inflicted Damage . | . . . . . Shots . | . . . . . Rammed . | . . . . . Targets Rammed . | . . . . . Kicked . | . . . . . Crushed . | . . . . . Highest Temperature 374 | 42 165 317 374 . Average Temperature 100 | 25 58 140 149 . Received Heat Transfer 207 | 42 111 36 18 . Effects 1 | . . . 1 . Shutdowns 1 | . . . 1 . Siege Activations . | . . . . . Robots Corrupted . | . . . . . Combat Hostiles . | . . . . . Parts Fried . | . . . . . Impact Corruptions . | . . . . . Robots Melted . | . . . . . Combat Hostiles . | . . . . . Parts Melted 1 | . 1 . . . Heat Transferred 370 | . 370 . . . Parts Sabotaged . | . . . . . Parts Stolen . | . . . . . Parts Stripped . | . . . . . Power Chain Reactions . | . . . . . Missiles Intercepted . | . . . . . Alert | -11 -10 -9 -9 -9 ------- Run | Scr Mat Mat Min Exi Peak Influence 253 | 25 201 75 253 . Initial 28 | . 16 . 28 . Average 121 | 12 118 22 182 . Maximum Alert Level 1 | . 1 . 1 . Low Security (%) 68 | 100 79 100 42 . Level 1 31 | . 20 . 57 . Level 2 . | . . . . . Level 3 . | . . . . . Level 4 . | . . . . . Level 5 . | . . . . . High Security . | . . . . . Max Security . | . . . . . Squads Dispatched 1 | . 1 . . . Investigation . | . . . . . Extermination . | . . . . . Reinforcement 1 | . 1 . . . Assault . | . . . . . Garrison . | . . . . . Intercept . | . . . . . Construction Impeded . | . . . . . Haulers Reinforced . | . . . . . Stealth | -11 -10 -9 -9 -9 --------- Run | Scr Mat Mat Min Exi Distress Signals 1 | . 1 . . . Communications Jammed . | . . . . . Distress Signals . | . . . . . Times Spotted 26 | 1 10 3 12 . Peak Tracking Total 4 | 1 4 2 4 . Tactical Retreats 1 | . . 1 . . Traps | -11 -10 -9 -9 -9 ------- Run | Scr Mat Mat Min Exi Traps Triggered . | . . . . . Indirectly . | . . . . . Trap Hack Attempts . | . . . . . Triggered . | . . . . . Disarmed . | . . . . . Reprogrammed . | . . . . . Reused . | . . . . . Traps Extracted . | . . . . . Installed . | . . . . . Triggered . | . . . . . Machines | -11 -10 -9 -9 -9 ---------- Run | Scr Mat Mat Min Exi Machines Disabled . | . . . . . Max in Single Turn . | . . . . . Machines Sabotaged . | . . . . . Garrisons Compromised . | . . . . . Overloaded Fab Kills . | . . . . . Fab Network Shutdowns . | . . . . . Hacking | -11 -10 -9 -9 -9 --------- Run | Scr Mat Mat Min Exi Machines Accessed 4 | . 3 1 . . Terminals 3 | . 2 1 . . Fabricators . | . . . . . Repair Stations . | . . . . . Recycling Units 1 | . 1 . . . Scanalyzers . | . . . . . Garrison Access . | . . . . . Total Hacks 7 | . 6 1 . . Successful 3 | . 3 . . . Failed 4 | . 3 1 . . Catastrophic 1 | . . 1 . . Database Lockouts . | . . . . . Manual . | . . . . . Terminals 4 | . 3 1 . . Fabricators . | . . . . . Repair Stations . | . . . . . Recycling Units 3 | . 3 . . . Scanalyzers . | . . . . . Garrison Access . | . . . . . Terminal Hacks 1 | . 1 . . . Hauler Manifests 1 | . 1 . . . Fabricator Hacks . | . . . . . Repair Station Hacks . | . . . . . Recycling Unit Hacks 2 | . 2 . . . Report Inventory 1 | . 1 . . . Retrieve Components 1 | . 1 . . . Scanalyzer . | . . . . . Garrison Access Hacks . | . . . . . Unauthorized Hacks . | . . . . . Terminals . | . . . . . Fabricators . | . . . . . Repair Stations . | . . . . . Recycling Units . | . . . . . Scanalyzers . | . . . . . Garrison Access . | . . . . . Data Cores Recovered . | . . . . . Used . | . . . . . Hacking Detections 3 | . 2 1 . . Full Trace Events . | . . . . . Feedback Events . | . . . . . Feedback Blocked . | . . . . . Robot Schematics Acquired . | . . . . . Robots Built . | . . . . . Matter . | . . . . . Time . | . . . . . Total Robot Build Rating . | . . . . . Part Schematics Acquired . | . . . . . Parts Built . | . . . . . Matter . | . . . . . Time . | . . . . . Total Part Build Rating . | . . . . . Parts Repaired . | . . . . . Time . | . . . . . Parts Recycled . | . . . . . Recycled Matter . | . . . . . Retrieved Matter . | . . . . . Retrieved Components 7 | . 7 . . . Parts Scanalyzed . | . . . . . Part Schematics Acquired . | . . . . . Parts Damaged . | . . . . . Bothacking | -11 -10 -9 -9 -9 ------------ Run | Scr Mat Mat Min Exi Used RIF Installer . | . . . . . Robots Hacked . | . . . . . Non-combat . | . . . . . Combat . | . . . . . Robot Hacks Applied . | . . . . . Relay Couplers Released . | . . . . . Robots Rewired . | . . . . . Allies Hacked . | . . . . . Hacks Repelled . | . . . . . Allies | -11 -10 -9 -9 -9 -------- Run | Scr Mat Mat Min Exi Total Allies . | . . . . . Largest Group . | . . . . . Highest-Rated Group . | . . . . . Highest-Rated Ally . | . . . . . Total Orders . | . . . . . Ally Attacks . | . . . . . Total Damage . | . . . . . Kills . | . . . . . Allies Corrupted . | . . . . . Allies Melted . | . . . . . Intel | -11 -10 -9 -9 -9 ------- Run | Scr Mat Mat Min Exi Robot Analysis Total . | . . . . . Derelict Logs Recovered 2 | . . . 2 . Drone Launches . | . . . . . Drone Recoveries . | . . . . . Exploration | -11 -10 -9 -9 -9 ------------- Run | Scr Mat Mat Min Exi Turns Passed 1354 | 181 429 137 563 44 Spaces Moved 928 | 134 288 77 393 36 Core 36 | 36 . . . . Treads . | . . . . . Legs 860 | 66 288 77 393 36 Wheels 32 | 32 . . . . Hover . | . . . . . Flight . | . . . . . Fastest Speed 50 | 50 120 120 120 120 Average Speed 116 | 91 120 120 120 120 Slowest Speed 150 | 120 120 120 150 120 Overloaded Moves . | . . . . . Propulsion Burnouts . | . . . . . Robots Hopped . | . . . . . Cave-ins Triggered . | . . . . . Exploration Rate (%) 29 | 9 55 10 59 12 Regions Visited 4 Branch Regions 2 Pre-discovered Areas . | . . . . . Known Exits Taken . | . . . . . Unknown Exits Taken 4 | 1 1 1 1 . Scrap Searched . | . . . . . Spaces Dug . | . . . . . Terrain Destroyed 14 | . . 1 13 . Melee . | . . . . . Projectile 14 | . . 1 13 . AOE . | . . . . . Terrain Rammed . | . . . . . Walls Destroyed . | . . . . . Machines Disabled . | . . . . . Actions | -11 -10 -9 -9 -9 --------- Run | Scr Mat Mat Min Exi Total 1095 | 171 326 110 452 36 Wait 71 | 12 2 17 40 . Move 924 | 133 287 76 392 36 Hop . | . . . . . Pick Up 11 | 5 3 2 1 . Fast Attach 13 | 8 2 3 . . Attach 6 | 1 1 2 2 . Detach 2 | 1 . 1 . . Swap 5 | . 2 1 2 . Drop 11 | 2 5 3 1 . Fire 52 | 9 24 5 14 . Melee . | . . . . . Ram . | . . . . . Kick . | . . . . . Crush . | . . . . . Escape Stasis . | . . . . . Rewire . | . . . . . Trap . | . . . . . Miscellaneous . | . . . . . Route ------- -11/Scrapyard -10/Materials (discovered 2 exits: *Mat / [*Min]) -9/Materials -9/Mines -9/Exiles History --------- Turn | Location | Event 2 | -11/Scrapyard | Met Revision 17 52 | -11/Scrapyard | Discovered new exit (range 8) 182 | -11/Scrapyard | Entered Materials 326 | -10/Materials | Build established: Scavenger-Mutant 456 | -10/Materials | Discovered new exit (range 8) 598 | -10/Materials | Discovered new exit (range 8) 611 | -10/Materials | Entered another Materials area 611 | -9/Materials | Evolved 2 slots: Propulsion x1, Weapon x1 675 | -9/Materials | Discovered new exit (range 15) 748 | -9/Materials | Entered Mines 809 | -9/Mines | Destroyed 7 combat bots 1129 | -9/Mines | Build established: Scavenger-Skirmisher 1244 | -9/Mines | Learned Materials terminal intel 1258 | -9/Mines | Learned Materials trap positions 1303 | -9/Mines | Deemed a non-threat by the Exiles lab entrance 1304 | -9/Mines | Discovered new exit (range 5) 1311 | -9/Mines | Entered Exiles 1340 | -9/Exiles | Met 8R-AWN 1355 | -9/Exiles | Self-destructed Last Messages --------------- 00826_ B-36 Bruiser destroyed. 00829_ Acquired 43 matter. 00834_ Acquired 11 matter. 00842_ Dropped Aluminum Leg. 00842_ Acquired Aluminum Leg. 00851_ U-05 Engineer builds a Wall. 01034_ K-01 Serf collects debris. 01244_ Acquired derelict log, extracted data. Data stored: Materials terminal intel. 01258_ Acquired derelict log, extracted data. Data stored: Materials trap records. 01261_ EM Shotgun destroyed. 01263_ Y-45 Defender destroyed. 01303_ "No threat detected, you may enter." 01304_ EXIT=FOUND LOCATION=UNKNOWN GOAL=ESCAPE 8R-AWN: Oh you look... interesting. The Exiles will probably want to check you out. Keep your grabby things to yourself, though. I've got my sensors on you. Map ----- +----------------------------------------------------+ | ?????????????????????????????????????????????????? | | ?????????????????????????????????????????????????? | | ?????????????????????????????????????????????????? | | ?????????????????????????????????????????????????? | | ?????????????????????????????????????????????????? | | ?????????????????????????????????????????????????? | | ?????????????????????????????????????????????????? | | ?????????????????????????????????????????????????? | | ?????????????????????????????????????????????????? | | ?????????????????????????????????????????????????? | | ?????????????????????????????????????????????????? | | ?????????????????????????????????????????????????? | | ?????????????????????????????????????????????????? | | ??????????????????????????????????#???#?#????????? | | ??????????????????????????????#?????????????????? | | ????????????????????????????????????????#???##??? | | ????????????????????????##?#????????????????????# | | ???????????????????#??????????????????????????## | | ?????????????????????????????????????????#????# | | ?????????????????????#????#####???#????#??#?#?# | | ?????????????????????????##" #?????##?????#### | | ?????????????????????????#" g #?????????????## | | ??????????????"????#????##" ###?#??#??????# | | ??????????????????????### ###????????### | | ??????????????????????# ########## | | ????????????? ????##?## @ #""""## # | | ?????????????????????# * # | | ???????????????? ## * | | ????????????? #### | | ???????????? ""###"""""#### | | ???????????? #"""##?#######??#### * | | ???????????? #####??????#???#???###### | | ??????????? #??#??????????????#?????#### | | ????????????? #????????#????????#?????????### | | ????????????? ""??????????#?????????????#?????## | | ??????????????aa"?????#??#?#??????###?????????#??# | | ???????????????????????#???????#?#??#?#?????#???## | | ??????????????????????????????????#???????#??#??#? | | ???????????????????????????????????????????????#?? | | ?????????????????????????????????????????????????? | | ??????????????????????##?????#??#?????##??????#?#? | | ?????????????????????????????????????????#??#?##?? | | ??????????????????????????????????#????????#?????? | | ???????????????????????????????????#?????????????? | | ????????????????????????????????????????????????#? | | ?????????????????????????????????????????????????? | | ?????????????????????????????????????????????????? | | ?????????????????????????????????????????????????? | | ?????????????????????????????????????????????????? | | ?????????????????????????????????????????????????? | +----------------------------------------------------+ Best States ------------- Heat Dissipation 28 Energy Generation 14 Energy Capacity 275 Matter Stores 300 Matter Capacity 300 Sight Range 16 Terrain Scan Range 16 Terrain Scan Density 60 Evasion (%) 50 Item Schematics ----------------- None Robot Schematics ------------------ None Fabricated ------------ Nothing Alien Tech Used ----------------- None Achievements -------------- None Challenges ------------ None Game ------ Seed LegTransmissionFirepult Manual? 0 Play Time 00:24:20 Cumulative 41.7 hours Start 2021.10.10 @ 16:27:41 End 2021.10.12 @ 10:36:52 Sessions 3 Manual Loads 0 Difficulty Rogue Special Mode None Game No. 57 Rogue 57 Adventurer 0 Explorer 0 Win Type - Total 0 Types 0/0/0/0/0/0/0/0/0 Lore% 18 Gallery% 30 Achievement% 14 Wizard Run 0 Options --------- ASCII 0 Keyboard 1 Movement Vi Keybinds 0 Fullscreen 0 Font 20/SmallcapsGlow Map View 76x50 Tactical HUD 1 Map Filters NONE Filters NONE Steam 1 RUN: 4174231d-07c9-4a2e-9574-75d8d6244ad5